[Event "Titled Tuesday Blitz July 11 Early 2023"]
[White "Frolyanov, Dmitry"]
[Black "Goltsev, Dmitry"]
[WhiteFideId "4151976"]
[BlackFideId "24176710"]
[WhiteElo "2615"]
[BlackElo "2772"]
[Result "0-1"]
[Round "11"]
[TimeControl "180+2"]
[Date "2023.07.11"]
[WhiteClock "0:00:00"]
[BlackClock "0:00:22"]
[Board "25"]

1. d4 {[%clk 0:03:00]}  Nf6 {[%clk 0:02:59]} 2. c4 {[%clk 0:03:00]}  e6 {[%clk 0:02:59]} 3. Nf3 {[%clk 0:03:00]}  b6 {[%clk 0:02:58]} 4. a3 {[%clk 0:02:59]}  Ba6 {[%clk 0:02:55]} 5. e3 {[%clk 0:02:59]}  d5 {[%clk 0:02:53]} 6. b3 {[%clk 0:02:59]}  Be7 {[%clk 0:02:52]} 7. Bd3 {[%clk 0:02:58]}  O-O {[%clk 0:02:51]} 8. O-O {[%clk 0:02:57]}  dxc4 {[%clk 0:02:52]} 9. bxc4 {[%clk 0:02:57]}  Bb7 {[%clk 0:02:52]} 10. Nbd2 {[%clk 0:02:55]}  c5 {[%clk 0:02:51]} 11. Bb2 {[%clk 0:02:55]}  Nbd7 {[%clk 0:02:48]} 12. Qe2 {[%clk 0:02:54]}  Qc7 {[%clk 0:02:45]} 13. Rfd1 {[%clk 0:02:50]}  Rfd8 {[%clk 0:02:43]} 14. Rac1 {[%clk 0:02:50]}  Rac8 {[%clk 0:02:42]} 15. h3 {[%clk 0:02:48]}  Nf8 {[%clk 0:02:38]} 16. Ne5 {[%clk 0:02:30]}  Ng6 {[%clk 0:02:31]} 17. Nxg6 {[%clk 0:02:13]}  hxg6 {[%clk 0:02:32]} 18. Nf3 {[%clk 0:02:13]}  Qc6 {[%clk 0:02:18]} 19. d5 {[%clk 0:01:16]}  exd5 {[%clk 0:02:16]} 20. cxd5 {[%clk 0:01:17]}  Rxd5 {[%clk 0:02:03]} 21. Bc4 {[%clk 0:01:16]}  Rxd1+ {[%clk 0:01:58]} 22. Rxd1 {[%clk 0:01:17]}  Rf8 {[%clk 0:01:41]} 23. Qf1 {[%clk 0:01:08]}  Bd6 {[%clk 0:01:25]} 24. Bxf6 {[%clk 0:01:04]}  gxf6 {[%clk 0:01:24]} 25. Bd5 {[%clk 0:01:04]}  Qxd5 {[%clk 0:01:15]} 26. Rxd5 {[%clk 0:01:05]}  Bxd5 {[%clk 0:01:16]} 27. Qd3 {[%clk 0:00:53]}  Rd8 {[%clk 0:01:11]} 28. e4 {[%clk 0:00:49]}  Be6 {[%clk 0:01:07]} 29. Qc3 {[%clk 0:00:47]}  Be7 {[%clk 0:00:56]} 30. g4 {[%clk 0:00:40]}  b5 {[%clk 0:00:54]} 31. Qa5 {[%clk 0:00:30]}  Rd3 {[%clk 0:00:52]} 32. Qxa7 {[%clk 0:00:27]}  Bf8 {[%clk 0:00:50]} 33. Kg2 {[%clk 0:00:23]}  c4 {[%clk 0:00:50]} 34. g5 {[%clk 0:00:19]}  c3 {[%clk 0:00:43]} 35. Qc7 {[%clk 0:00:17]}  Bc4 {[%clk 0:00:40]} 36. Ne1 {[%clk 0:00:17]}  Rd1 {[%clk 0:00:31]} 37. Nc2 {[%clk 0:00:13]}  Rd2 {[%clk 0:00:32]} 38. Ne3 {[%clk 0:00:13]}  c2 {[%clk 0:00:33]} 39. Nxc2 {[%clk 0:00:13]}  Rxc2 {[%clk 0:00:33]} 40. Kg3 {[%clk 0:00:07]}  fxg5 {[%clk 0:00:31]} 41. Qd8 {[%clk 0:00:07]}  Rc3+ {[%clk 0:00:27]} 42. f3 {[%clk 0:00:07]}  Be2 {[%clk 0:00:24]} 43. Kf2 {[%clk 0:00:05]}  Bxf3 {[%clk 0:00:24]} 44. Qxg5 {[%clk 0:00:00]}  Bc5+ {[%clk 0:00:22]} 0-1


[Site "https://www.chess.com"]

[Event "Titled Tuesday Blitz July 11 Early 2023"]
[White "Ambartsumova, Karina"]
[Black "Jarovinsky, Alexey"]
[WhiteFideId "4166299"]
[BlackFideId "14115131"]
[WhiteElo "2599"]
[BlackElo "2731"]
[Result "1-0"]
[Round "11"]
[TimeControl "180+2"]
[Date "2023.07.11"]
[WhiteClock "0:00:19"]
[BlackClock "0:00:00"]
[Board "27"]

1. d4 {[%clk 0:02:59]}  c5 {[%clk 0:02:59]} 2. d5 {[%clk 0:02:57]}  g6 {[%clk 0:02:56]} 3. c4 {[%clk 0:02:55]}  d6 {[%clk 0:02:55]} 4. Nc3 {[%clk 0:02:54]}  Bg7 {[%clk 0:02:54]} 5. Nf3 {[%clk 0:02:54]}  Nf6 {[%clk 0:02:54]} 6. e4 {[%clk 0:02:51]}  O-O {[%clk 0:02:54]} 7. Be2 {[%clk 0:02:48]}  e6 {[%clk 0:02:51]} 8. O-O {[%clk 0:02:47]}  exd5 {[%clk 0:02:51]} 9. cxd5 {[%clk 0:02:48]}  Bg4 {[%clk 0:02:45]} 10. h3 {[%clk 0:02:42]}  Bxf3 {[%clk 0:02:45]} 11. Bxf3 {[%clk 0:02:43]}  Nbd7 {[%clk 0:02:43]} 12. Qc2 {[%clk 0:02:43]}  a6 {[%clk 0:02:39]} 13. a4 {[%clk 0:02:43]}  Re8 {[%clk 0:02:36]} 14. Bf4 {[%clk 0:02:35]}  Ne5 {[%clk 0:02:35]} 15. Be2 {[%clk 0:02:34]}  c4 {[%clk 0:02:29]} 16. Bxe5 {[%clk 0:02:29]}  Rxe5 {[%clk 0:02:27]} 17. Bxc4 {[%clk 0:02:29]}  Rc8 {[%clk 0:02:23]} 18. Bd3 {[%clk 0:02:29]}  Nd7 {[%clk 0:02:12]} 19. Rae1 {[%clk 0:02:15]}  Qb6 {[%clk 0:02:02]} 20. Kh1 {[%clk 0:02:09]}  Ree8 {[%clk 0:01:51]} 21. f4 {[%clk 0:01:32]}  Nc5 {[%clk 0:01:20]} 22. Qf2 {[%clk 0:01:25]}  Qb4 {[%clk 0:01:14]} 23. Bb1 {[%clk 0:01:20]}  Nxa4 {[%clk 0:00:56]} 24. Nxa4 {[%clk 0:01:18]}  Qxa4 {[%clk 0:00:56]} 25. e5 {[%clk 0:01:13]}  Qd7 {[%clk 0:00:42]} 26. Qd4 {[%clk 0:00:44]}  Qc7 {[%clk 0:00:33]} 27. exd6 {[%clk 0:00:37]}  Qxd6 {[%clk 0:00:22]} 28. Qd2 {[%clk 0:00:37]}  Red8 {[%clk 0:00:18]} 29. Rd1 {[%clk 0:00:34]}  Qb6 {[%clk 0:00:17]} 30. Rf2 {[%clk 0:00:30]}  Rd6 {[%clk 0:00:16]} 31. f5 {[%clk 0:00:27]}  Rcd8 {[%clk 0:00:14]} 32. Be4 {[%clk 0:00:27]}  a5 {[%clk 0:00:09]} 33. fxg6 {[%clk 0:00:27]}  fxg6 {[%clk 0:00:10]} 34. Rdf1 {[%clk 0:00:25]}  Qc7 {[%clk 0:00:07]} 35. Qd3 {[%clk 0:00:20]}  Qe7 {[%clk 0:00:06]} 36. Re2 {[%clk 0:00:20]}  Qd7 {[%clk 0:00:06]} 37. Bf3 {[%clk 0:00:20]}  Re8 {[%clk 0:00:04]} 38. Rfe1 {[%clk 0:00:19]}  Rxe2 {[%clk 0:00:04]} 39. Qxe2 {[%clk 0:00:20]}  h5 {[%clk 0:00:00]} 40. Qd3 {[%clk 0:00:19]} 1-0


[Site "https://www.chess.com"]

[Event "Titled Tuesday Blitz July 11 Early 2023"]
[White "NovoselovRoman"]
[Black "Matinian, Nikita"]
[BlackFideId "24129100"]
[WhiteElo "2591"]
[BlackElo "2704"]
[Result "1-0"]
[Round "11"]
[TimeControl "180+2"]
[Date "2023.07.11"]
[WhiteClock "0:00:05"]
[BlackClock "0:00:01"]
[Board "29"]

1. e4 {[%clk 0:03:00]}  c5 {[%clk 0:02:51]} 2. Nc3 {[%clk 0:03:00]}  Nc6 {[%clk 0:02:51]} 3. g3 {[%clk 0:03:01]}  g6 {[%clk 0:02:52]} 4. Bg2 {[%clk 0:03:01]}  Bg7 {[%clk 0:02:52]} 5. d3 {[%clk 0:03:02]}  Rb8 {[%clk 0:02:53]} 6. a4 {[%clk 0:03:01]}  a6 {[%clk 0:02:49]} 7. Nf3 {[%clk 0:03:00]}  b5 {[%clk 0:02:49]} 8. axb5 {[%clk 0:03:01]}  axb5 {[%clk 0:02:50]} 9. O-O {[%clk 0:03:01]}  b4 {[%clk 0:02:50]} 10. Ne2 {[%clk 0:03:02]}  e5 {[%clk 0:02:45]} 11. Be3 {[%clk 0:02:59]}  Nd4 {[%clk 0:02:44]} 12. c3 {[%clk 0:02:54]}  bxc3 {[%clk 0:02:39]} 13. bxc3 {[%clk 0:02:55]}  Ne6 {[%clk 0:02:27]} 14. d4 {[%clk 0:02:54]}  exd4 {[%clk 0:02:27]} 15. cxd4 {[%clk 0:02:55]}  Ne7 {[%clk 0:02:28]} 16. Rc1 {[%clk 0:02:51]}  cxd4 {[%clk 0:02:23]} 17. Nfxd4 {[%clk 0:02:52]}  O-O {[%clk 0:02:21]} 18. Qd2 {[%clk 0:02:47]}  d5 {[%clk 0:02:17]} 19. exd5 {[%clk 0:02:44]}  Nxd4 {[%clk 0:02:17]} 20. Bxd4 {[%clk 0:02:42]}  Ba6 {[%clk 0:02:12]} 21. Bxg7 {[%clk 0:02:41]}  Kxg7 {[%clk 0:02:11]} 22. Rfd1 {[%clk 0:02:41]}  Bxe2 {[%clk 0:02:05]} 23. Qxe2 {[%clk 0:02:40]}  Qd6 {[%clk 0:02:03]} 24. h4 {[%clk 0:02:37]}  Nf5 {[%clk 0:02:02]} 25. Rc6 {[%clk 0:02:29]}  Rfe8 {[%clk 0:01:55]} 26. Qc4 {[%clk 0:01:43]}  Qa3 {[%clk 0:01:34]} 27. h5 {[%clk 0:01:34]}  Rb4 {[%clk 0:01:22]} 28. Qc5 {[%clk 0:01:26]}  Qb2 {[%clk 0:01:12]} 29. d6 {[%clk 0:01:10]}  Rd4 {[%clk 0:01:12]} 30. Rxd4 {[%clk 0:01:01]}  Nxd4 {[%clk 0:01:13]} 31. d7 {[%clk 0:00:38]}  Re1+ {[%clk 0:01:11]} 32. Kh2 {[%clk 0:00:38]}  Qxf2 {[%clk 0:00:25]} 33. d8=Q {[%clk 0:00:18]}  Nf3+ {[%clk 0:00:25]} 34. Kh3 {[%clk 0:00:18]}  Ng1+ {[%clk 0:00:25]} 35. Kh4 {[%clk 0:00:14]}  Re4+ {[%clk 0:00:03]} 36. Bxe4 {[%clk 0:00:08]}  Qh2+ {[%clk 0:00:03]} 37. Kg4 {[%clk 0:00:08]}  Qe2+ {[%clk 0:00:04]} 38. Kf4 {[%clk 0:00:07]}  Nh3+ {[%clk 0:00:03]} 39. Ke5 {[%clk 0:00:06]}  Qxh5+ {[%clk 0:00:03]} 40. Kd6 {[%clk 0:00:06]}  Qd1+ {[%clk 0:00:01]} 41. Kc7 {[%clk 0:00:05]} 1-0


[Site "https://www.chess.com"]

[Event "Titled Tuesday Blitz July 11 Early 2023"]
[White "Rosh Jain"]
[Black "Komov, Roman"]
[WhiteFideId "25789465"]
[BlackFideId "24175714"]
[WhiteElo "2437"]
[BlackElo "2662"]
[Result "0-1"]
[Round "11"]
[TimeControl "180+2"]
[Date "2023.07.11"]
[WhiteClock "0:00:05"]
[BlackClock "0:00:32"]
[Board "32"]

1. e4 {[%clk 0:02:33]}  c5 {[%clk 0:02:59]} 2. Nc3 {[%clk 0:02:33]}  Nc6 {[%clk 0:02:56]} 3. f4 {[%clk 0:02:32]}  g6 {[%clk 0:02:56]} 4. Nf3 {[%clk 0:02:32]}  Bg7 {[%clk 0:02:56]} 5. a4 {[%clk 0:02:30]}  e6 {[%clk 0:02:56]} 6. e5 {[%clk 0:02:30]}  d6 {[%clk 0:02:50]} 7. Bb5 {[%clk 0:02:28]}  Ne7 {[%clk 0:02:34]} 8. Ne4 {[%clk 0:02:27]}  dxe5 {[%clk 0:02:34]} 9. fxe5 {[%clk 0:02:28]}  O-O {[%clk 0:02:28]} 10. Nf6+ {[%clk 0:02:28]}  Kh8 {[%clk 0:02:29]} 11. d4 {[%clk 0:02:27]}  cxd4 {[%clk 0:02:15]} 12. Bg5 {[%clk 0:02:26]}  Qc7 {[%clk 0:02:14]} 13. Qe2 {[%clk 0:02:21]}  a6 {[%clk 0:02:07]} 14. h4 {[%clk 0:02:05]}  Nf5 {[%clk 0:01:49]} 15. Rh3 {[%clk 0:01:24]}  axb5 {[%clk 0:01:19]} 16. h5 {[%clk 0:01:24]}  Bxf6 {[%clk 0:01:20]} 17. Bxf6+ {[%clk 0:01:24]}  Kg8 {[%clk 0:01:20]} 18. g4 {[%clk 0:01:19]}  Ne3 {[%clk 0:01:12]} 19. c3 {[%clk 0:00:41]}  Rxa4 {[%clk 0:01:03]} 20. Rxa4 {[%clk 0:00:37]}  bxa4 {[%clk 0:01:04]} 21. cxd4 {[%clk 0:00:34]}  Nb4 {[%clk 0:01:00]} 22. Nd2 {[%clk 0:00:19]}  Qc1+ {[%clk 0:00:52]} 23. Kf2 {[%clk 0:00:19]}  Nxg4+ {[%clk 0:00:52]} 24. Qxg4 {[%clk 0:00:17]}  Qxd2+ {[%clk 0:00:52]} 25. Kg1 {[%clk 0:00:17]}  Nc2 {[%clk 0:00:35]} 26. hxg6 {[%clk 0:00:15]}  fxg6 {[%clk 0:00:36]} 27. Rxh7 {[%clk 0:00:13]}  Kxh7 {[%clk 0:00:32]} 28. Bg5 {[%clk 0:00:08]}  Qxd4+ {[%clk 0:00:31]} 29. Qxd4 {[%clk 0:00:05]}  Nxd4 {[%clk 0:00:32]} 0-1


[Site "https://www.chess.com"]

[Event "Titled Tuesday Blitz July 11 Early 2023"]
[White "Oleksiyenko, Mykhaylo"]
[Black "Todorovic, Bojan"]
[WhiteFideId "4152417"]
[BlackFideId "917087"]
[WhiteElo "2662"]
[BlackElo "2374"]
[Result "1-0"]
[Round "11"]
[TimeControl "180+2"]
[Date "2023.07.11"]
[WhiteClock "0:01:12"]
[BlackClock "0:00:33"]
[Board "33"]

1. e4 {[%clk 0:02:31]}  g6 {[%clk 0:02:57]} 2. d4 {[%clk 0:02:31]}  Bg7 {[%clk 0:02:57]} 3. f4 {[%clk 0:02:31]}  d6 {[%clk 0:02:56]} 4. Nf3 {[%clk 0:02:30]}  a6 {[%clk 0:02:56]} 5. Nc3 {[%clk 0:02:29]}  b5 {[%clk 0:02:55]} 6. Bd3 {[%clk 0:02:29]}  Bb7 {[%clk 0:02:54]} 7. e5 {[%clk 0:02:30]}  Nd7 {[%clk 0:02:53]} 8. a4 {[%clk 0:02:30]}  b4 {[%clk 0:02:51]} 9. Ne4 {[%clk 0:02:30]}  c5 {[%clk 0:02:41]} 10. c3 {[%clk 0:02:29]}  Bxe4 {[%clk 0:02:09]} 11. Bxe4 {[%clk 0:02:29]}  Rb8 {[%clk 0:02:09]} 12. O-O {[%clk 0:02:26]}  e6 {[%clk 0:01:55]} 13. exd6 {[%clk 0:02:17]}  Qb6 {[%clk 0:01:54]} 14. dxc5 {[%clk 0:02:07]}  Nxc5 {[%clk 0:01:53]} 15. Be3 {[%clk 0:02:07]}  Nf6 {[%clk 0:01:49]} 16. a5 {[%clk 0:02:01]}  Qb5 {[%clk 0:01:05]} 17. Nd4 {[%clk 0:01:45]}  Qxf1+ {[%clk 0:01:05]} 18. Qxf1 {[%clk 0:01:41]}  Nfxe4 {[%clk 0:01:05]} 19. cxb4 {[%clk 0:01:34]}  Rxb4 {[%clk 0:01:02]} 20. Nc6 {[%clk 0:01:33]}  Rxb2 {[%clk 0:00:59]} 21. Bxc5 {[%clk 0:01:29]}  Nxc5 {[%clk 0:00:58]} 22. Rc1 {[%clk 0:01:29]}  Nd7 {[%clk 0:00:55]} 23. Ne7 {[%clk 0:01:19]}  Bd4+ {[%clk 0:00:41]} 24. Kh1 {[%clk 0:01:20]}  Kf8 {[%clk 0:00:40]} 25. Qc4 {[%clk 0:01:14]}  Bc5 {[%clk 0:00:33]} 26. Qc3 {[%clk 0:01:12]} 1-0


[Site "https://www.chess.com"]

[Event "Titled Tuesday Blitz July 11 Early 2023"]
[White "Xu, Yi"]
[Black "Ganiev, Roman"]
[WhiteFideId "8605564"]
[BlackFideId "4131452"]
[WhiteElo "2720"]
[BlackElo "2577"]
[Result "1-0"]
[Round "11"]
[TimeControl "180+2"]
[Date "2023.07.11"]
[WhiteClock "0:00:45"]
[BlackClock "0:00:00"]
[Board "34"]

1. c3 {[%clk 0:02:56]}  e5 {[%clk 0:02:59]} 2. d4 {[%clk 0:02:55]}  exd4 {[%clk 0:02:59]} 3. cxd4 {[%clk 0:02:55]}  Nf6 {[%clk 0:03:00]} 4. Nf3 {[%clk 0:02:54]}  d5 {[%clk 0:02:58]} 5. Nc3 {[%clk 0:02:53]}  c6 {[%clk 0:02:57]} 6. Bf4 {[%clk 0:02:52]}  Bd6 {[%clk 0:02:57]} 7. g3 {[%clk 0:02:52]}  O-O {[%clk 0:02:56]} 8. e3 {[%clk 0:02:52]}  Bg4 {[%clk 0:02:54]} 9. h3 {[%clk 0:02:50]}  Bh5 {[%clk 0:02:52]} 10. Bd3 {[%clk 0:02:47]}  Re8 {[%clk 0:02:51]} 11. Bxd6 {[%clk 0:02:44]}  Qxd6 {[%clk 0:02:51]} 12. g4 {[%clk 0:02:44]}  Bg6 {[%clk 0:02:51]} 13. Bxg6 {[%clk 0:02:38]}  hxg6 {[%clk 0:02:52]} 14. Qc2 {[%clk 0:02:37]}  Nbd7 {[%clk 0:02:51]} 15. O-O-O {[%clk 0:02:36]}  a5 {[%clk 0:02:48]} 16. Kb1 {[%clk 0:02:20]}  b5 {[%clk 0:02:41]} 17. g5 {[%clk 0:02:16]}  Ne4 {[%clk 0:02:39]} 18. Nxe4 {[%clk 0:02:16]}  Rxe4 {[%clk 0:02:35]} 19. Rc1 {[%clk 0:02:13]}  Ra6 {[%clk 0:02:30]} 20. h4 {[%clk 0:02:12]}  a4 {[%clk 0:02:22]} 21. h5 {[%clk 0:02:09]}  b4 {[%clk 0:02:19]} 22. h6 {[%clk 0:01:57]}  b3 {[%clk 0:02:09]} 23. axb3 {[%clk 0:01:48]}  axb3 {[%clk 0:02:08]} 24. Qxb3 {[%clk 0:01:48]}  Rb6 {[%clk 0:02:08]} 25. Qc3 {[%clk 0:01:42]}  Re8 {[%clk 0:01:52]} 26. hxg7 {[%clk 0:01:42]}  Kxg7 {[%clk 0:01:49]} 27. Rh4 {[%clk 0:01:32]}  Reb8 {[%clk 0:01:41]} 28. Rc2 {[%clk 0:01:27]}  Qe6 {[%clk 0:01:19]} 29. Ne5 {[%clk 0:01:05]}  Nxe5 {[%clk 0:01:03]} 30. dxe5 {[%clk 0:01:04]}  Rb3 {[%clk 0:01:04]} 31. Qd4 {[%clk 0:00:53]}  Kg8 {[%clk 0:00:25]} 32. Qf4 {[%clk 0:00:48]}  d4 {[%clk 0:00:18]} 33. Qf6 {[%clk 0:00:46]}  Qxf6 {[%clk 0:00:08]} 34. gxf6 {[%clk 0:00:46]}  d3 {[%clk 0:00:07]} 35. Rd2 {[%clk 0:00:46]}  c5 {[%clk 0:00:05]} 36. f4 {[%clk 0:00:46]}  c4 {[%clk 0:00:03]} 37. Rdh2 {[%clk 0:00:45]}  Rxb2+ {[%clk 0:00:00]} 38. Rxb2 {[%clk 0:00:45]} 1-0


[Site "https://www.chess.com"]

[Event "Titled Tuesday Blitz July 11 Early 2023"]
[White "Leon Oquendo, Jorge"]
[Black "Gunina, Valentina"]
[WhiteFideId "3514803"]
[BlackFideId "4167570"]
[WhiteElo "2566"]
[BlackElo "2712"]
[Result "1-0"]
[Round "11"]
[TimeControl "180+2"]
[Date "2023.07.11"]
[WhiteClock "0:00:09"]
[BlackClock "0:00:01"]
[Board "36"]

1. d4 {[%clk 0:03:00]}  d5 {[%clk 0:02:58]} 2. c4 {[%clk 0:03:01]}  c6 {[%clk 0:02:58]} 3. Nf3 {[%clk 0:03:00]}  Nf6 {[%clk 0:02:58]} 4. e3 {[%clk 0:03:00]}  Bg4 {[%clk 0:02:57]} 5. Qb3 {[%clk 0:02:58]}  Qb6 {[%clk 0:02:56]} 6. Ne5 {[%clk 0:02:59]}  Bf5 {[%clk 0:02:56]} 7. Nc3 {[%clk 0:02:58]}  e6 {[%clk 0:02:54]} 8. Bd2 {[%clk 0:02:51]}  Nbd7 {[%clk 0:02:53]} 9. f4 {[%clk 0:02:44]}  Be7 {[%clk 0:02:46]} 10. Be2 {[%clk 0:02:42]}  h6 {[%clk 0:02:45]} 11. O-O {[%clk 0:02:42]}  O-O {[%clk 0:02:35]} 12. Rac1 {[%clk 0:02:36]}  Rad8 {[%clk 0:02:32]} 13. Na4 {[%clk 0:02:23]}  Qxb3 {[%clk 0:02:31]} 14. axb3 {[%clk 0:02:24]}  Ne4 {[%clk 0:02:31]} 15. Ba5 {[%clk 0:02:21]}  Nxe5 {[%clk 0:02:29]} 16. Bxd8 {[%clk 0:02:18]}  Rxd8 {[%clk 0:02:29]} 17. fxe5 {[%clk 0:02:17]}  Bg5 {[%clk 0:02:28]} 18. g4 {[%clk 0:01:23]}  Bxe3+ {[%clk 0:02:25]} 19. Kg2 {[%clk 0:01:23]}  Bxc1 {[%clk 0:02:24]} 20. gxf5 {[%clk 0:01:23]}  Be3 {[%clk 0:02:24]} 21. fxe6 {[%clk 0:01:22]}  fxe6 {[%clk 0:02:24]} 22. Bg4 {[%clk 0:01:23]}  Bxd4 {[%clk 0:02:22]} 23. Bxe6+ {[%clk 0:01:21]}  Kh8 {[%clk 0:02:23]} 24. cxd5 {[%clk 0:01:20]}  cxd5 {[%clk 0:02:23]} 25. Rf5 {[%clk 0:01:14]}  a5 {[%clk 0:02:11]} 26. Bf7 {[%clk 0:01:07]}  Rc8 {[%clk 0:01:55]} 27. e6 {[%clk 0:00:56]}  Rc2+ {[%clk 0:01:54]} 28. Kh3 {[%clk 0:00:51]}  Bf6 {[%clk 0:01:45]} 29. Rxd5 {[%clk 0:00:42]}  Re2 {[%clk 0:01:22]} 30. Nc5 {[%clk 0:00:34]}  Ng5+ {[%clk 0:01:18]} 31. Kg4 {[%clk 0:00:32]}  b6 {[%clk 0:01:13]} 32. Nd7 {[%clk 0:00:24]}  Bxb2 {[%clk 0:01:08]} 33. Kf5 {[%clk 0:00:20]}  Nxe6 {[%clk 0:00:41]} 34. Bxe6 {[%clk 0:00:20]}  g6+ {[%clk 0:00:41]} 35. Kxg6 {[%clk 0:00:17]}  Rxe6+ {[%clk 0:00:41]} 36. Kf7 {[%clk 0:00:17]}  Re3 {[%clk 0:00:39]} 37. Rf5 {[%clk 0:00:14]}  Bg7 {[%clk 0:00:29]} 38. Rb5 {[%clk 0:00:14]}  Rf3+ {[%clk 0:00:25]} 39. Ke6 {[%clk 0:00:14]}  Bd4 {[%clk 0:00:25]} 40. Kd5 {[%clk 0:00:11]}  Bg1 {[%clk 0:00:24]} 41. h4 {[%clk 0:00:11]}  Rf4 {[%clk 0:00:20]} 42. h5 {[%clk 0:00:10]}  Kg7 {[%clk 0:00:20]} 43. Kc6 {[%clk 0:00:10]}  Rh4 {[%clk 0:00:18]} 44. Nxb6 {[%clk 0:00:10]}  Rh3 {[%clk 0:00:16]} 45. Nc4 {[%clk 0:00:09]}  Kf6 {[%clk 0:00:15]} 46. Nxa5 {[%clk 0:00:08]}  Be3 {[%clk 0:00:13]} 47. Nc4 {[%clk 0:00:08]}  Bg5 {[%clk 0:00:13]} 48. Kd7 {[%clk 0:00:06]}  Rxh5 {[%clk 0:00:13]} 49. b4 {[%clk 0:00:06]}  Rh1 {[%clk 0:00:12]} 50. Nd6 {[%clk 0:00:07]}  Rd1 {[%clk 0:00:12]} 51. Kc6 {[%clk 0:00:07]}  Ke6 {[%clk 0:00:11]} 52. Nc4 {[%clk 0:00:04]}  Rc1 {[%clk 0:00:09]} 53. Rc5 {[%clk 0:00:03]}  Be7 {[%clk 0:00:08]} 54. Re5+ {[%clk 0:00:04]}  Kf6 {[%clk 0:00:08]} 55. Re4 {[%clk 0:00:04]}  Bxb4 {[%clk 0:00:07]} 56. Kd5 {[%clk 0:00:03]}  Rd1+ {[%clk 0:00:07]} 57. Kc6 {[%clk 0:00:03]}  Kf5 {[%clk 0:00:06]} 58. Re8 {[%clk 0:00:02]}  h5 {[%clk 0:00:06]} 59. Ne3+ {[%clk 0:00:03]}  Kf4 {[%clk 0:00:05]} 60. Nxd1 {[%clk 0:00:04]}  h4 {[%clk 0:00:05]} 61. Rh8 {[%clk 0:00:03]}  Kg3 {[%clk 0:00:05]} 62. Ne3 {[%clk 0:00:03]}  Bc3 {[%clk 0:00:03]} 63. Nf5+ {[%clk 0:00:01]}  Kg4 {[%clk 0:00:03]} 64. Rxh4+ {[%clk 0:00:02]}  Kxf5 {[%clk 0:00:03]} 65. Rc4 {[%clk 0:00:02]}  Be5 {[%clk 0:00:03]} 66. Kd5 {[%clk 0:00:03]}  Bg7 {[%clk 0:00:03]} 67. Re4 {[%clk 0:00:04]}  Bc3 {[%clk 0:00:03]} 68. Re6 {[%clk 0:00:04]}  Bf6 {[%clk 0:00:03]} 69. Re8 {[%clk 0:00:05]}  Bg7 {[%clk 0:00:03]} 70. Re2 {[%clk 0:00:06]}  Bc3 {[%clk 0:00:03]} 71. Rf2+ {[%clk 0:00:06]}  Kg6 {[%clk 0:00:04]} 72. Ke6 {[%clk 0:00:07]}  Bd4 {[%clk 0:00:03]} 73. Rg2+ {[%clk 0:00:07]}  Kh5 {[%clk 0:00:03]} 74. Kf5 {[%clk 0:00:07]}  Kh4 {[%clk 0:00:04]} 75. Rg4+ {[%clk 0:00:08]}  Kh3 {[%clk 0:00:01]} 76. Rxd4 {[%clk 0:00:09]} 1-0


[Site "https://www.chess.com"]

[Event "Titled Tuesday Blitz July 11 Early 2023"]
[White "Shubenkova, Veronika"]
[Black "Timerkhanov, Alexander"]
[WhiteFideId "44124040"]
[BlackFideId "24177938"]
[WhiteElo "2560"]
[BlackElo "2696"]
[Result "1-0"]
[Round "11"]
[TimeControl "180+2"]
[Date "2023.07.11"]
[WhiteClock "0:01:12"]
[BlackClock "0:00:00"]
[Board "39"]

1. e4 {[%clk 0:03:00]}  c5 {[%clk 0:02:58]} 2. Nc3 {[%clk 0:03:01]}  a6 {[%clk 0:02:58]} 3. g3 {[%clk 0:03:00]}  d6 {[%clk 0:02:57]} 4. Bg2 {[%clk 0:03:01]}  Nf6 {[%clk 0:02:57]} 5. d3 {[%clk 0:03:01]}  Nc6 {[%clk 0:02:56]} 6. f4 {[%clk 0:03:02]}  e6 {[%clk 0:02:53]} 7. Nf3 {[%clk 0:03:03]}  Ke7 {[%clk 0:02:53]} 8. O-O {[%clk 0:03:02]}  Ke8 {[%clk 0:02:49]} 9. Be3 {[%clk 0:03:02]}  Be7 {[%clk 0:02:45]} 10. h3 {[%clk 0:03:01]}  Qc7 {[%clk 0:02:43]} 11. Ne2 {[%clk 0:03:01]}  b5 {[%clk 0:02:41]} 12. Rb1 {[%clk 0:03:01]}  Bb7 {[%clk 0:02:41]} 13. g4 {[%clk 0:03:01]}  h6 {[%clk 0:02:40]} 14. Ng3 {[%clk 0:03:00]}  d5 {[%clk 0:02:37]} 15. e5 {[%clk 0:02:59]}  Nd7 {[%clk 0:02:37]} 16. c3 {[%clk 0:03:00]}  Kd8 {[%clk 0:02:26]} 17. b3 {[%clk 0:02:56]}  Kc8 {[%clk 0:02:26]} 18. d4 {[%clk 0:02:56]}  Kb8 {[%clk 0:02:07]} 19. dxc5 {[%clk 0:02:55]}  Bxc5 {[%clk 0:02:03]} 20. Nd4 {[%clk 0:02:55]}  Qb6 {[%clk 0:02:01]} 21. Nge2 {[%clk 0:02:46]}  b4 {[%clk 0:01:56]} 22. cxb4 {[%clk 0:02:42]}  Nxb4 {[%clk 0:01:49]} 23. a3 {[%clk 0:02:42]}  Nc6 {[%clk 0:01:42]} 24. b4 {[%clk 0:02:42]}  Be7 {[%clk 0:01:31]} 25. Rc1 {[%clk 0:02:40]}  Nxd4 {[%clk 0:01:28]} 26. Nxd4 {[%clk 0:02:40]}  Rc8 {[%clk 0:01:25]} 27. Nc6+ {[%clk 0:02:39]}  Qxc6 {[%clk 0:01:20]} 28. Rxc6 {[%clk 0:02:37]}  Bxc6 {[%clk 0:01:21]} 29. Qd4 {[%clk 0:02:33]}  Bb5 {[%clk 0:01:19]} 30. Rc1 {[%clk 0:02:31]}  Rxc1+ {[%clk 0:01:18]} 31. Bxc1 {[%clk 0:02:32]}  Kb7 {[%clk 0:01:17]} 32. Be3 {[%clk 0:02:31]}  Bd8 {[%clk 0:01:15]} 33. f5 {[%clk 0:02:29]}  Bb6 {[%clk 0:01:14]} 34. Qf4 {[%clk 0:02:28]}  Bc7 {[%clk 0:00:44]} 35. fxe6 {[%clk 0:02:26]}  fxe6 {[%clk 0:00:44]} 36. Qf7 {[%clk 0:02:26]}  Nxe5 {[%clk 0:00:36]} 37. Qxe6 {[%clk 0:02:24]}  Re8 {[%clk 0:00:37]} 38. Bxd5+ {[%clk 0:02:20]}  Kb8 {[%clk 0:00:35]} 39. Qf5 {[%clk 0:02:15]}  Nd3 {[%clk 0:00:23]} 40. Qf3 {[%clk 0:01:48]}  Ne1 {[%clk 0:00:10]} 41. Qf2 {[%clk 0:01:34]}  Nd3 {[%clk 0:00:10]} 42. Qd2 {[%clk 0:01:34]}  Rd8 {[%clk 0:00:08]} 43. a4 {[%clk 0:01:24]}  Ne5 {[%clk 0:00:05]} 44. axb5 {[%clk 0:01:12]}  Nf3+ {[%clk 0:00:00]} 45. Bxf3 {[%clk 0:01:12]} 1-0


[Site "https://www.chess.com"]